Cogmind - Beta 16 @@@ ROGUE MODE // 2025.12.27 @ 17:42:19 Player: McSaucyNugget Result: Destroyed by G-34 Mercenary with Small Laser Performance ------------- Evolutions (1) 500 Regions Visited (3) 600 Robots Destroyed (8) 40 Value Destroyed (234) 234 Prototype IDs (1) 20 Alien Tech Used (0) 0 Bonus (200) 200 TOTAL SCORE: 1594 Bonus ------- Pacifist 200 Cogmind --------- Core Integrity 0/400 Matter 195/300 Energy 280/280 System Corruption 0% Temperature Cool (6) Movement Treading (160) Location -9/Materials Parts ------- > --- POWER (1) -------- Cooled Ion Engine > --- PROPULSION (3) --- Light Treads Improved Treads Improved Treads > --- UTILITY (3) ------ Large Storage Unit > --- WEAPON (2) ------- Mining Claw > --- INVENTORY (15) --- Ion Engine Cooled Ion Engine Faulty Cooled Ion Engine Light Treads Light Treads Improved Treads Peak State ------------ > --- POWER ------------ Cooled Ion Engine > --- PROPULSION ------- Improved Aluminum Leg Improved Aluminum Leg Improved Aluminum Leg > --- UTILITY ---------- Large Storage Unit Hardened Light Armor Plating Hardened Light Armor Plating > --- WEAPON ----------- Mining Claw > --- INVENTORY -------- Ion Engine Cooled Ion Engine Cooled Ion Engine Light Treads Light Treads Improved Treads Improved Treads Improved Treads [Rating: 16] Favorites ----------- Power Cooled Ion Engine Engine Cooled Ion Engine Propulsion Light Treads Treads Light Treads Leg Improved Aluminum Leg Utility Hardened Light Armor Plating Storage Large Storage Unit Protection Hardened Light Armor Plating Weapon Mining Claw Slashing Weapon Mining Claw Build | -11 -10 -10 -9 ------- Run | Yrd Mat Min Mat Slots Evolved 2 | . . . 2 Power . | . . . . Propulsion 1 | . . . 1 Utility 1 | . . . 1 Weapon . | . . . . Parts Attached 18 | 3 1 . 14 Power 2 | 1 . . 1 Engine 2 | 1 . . 1 Core . | . . . . Reactor . | . . . . Propulsion 11 | 2 . . 9 Treads 6 | 2 . . 4 Leg 5 | . . . 5 Wheel . | . . . . Hover . | . . . . Flight . | . . . . Utility 4 | . 1 . 3 Device . | . . . . Storage 1 | . . . 1 Processor . | . . . . Hackware . | . . . . Protection 3 | . 1 . 2 Artifact . | . . . . Weapon 1 | . . . 1 Energy Gun . | . . . . Energy Cannon . | . . . . Ballistic Gun . | . . . . Ballistic Cannon . | . . . . Launcher . | . . . . Special Weapon . | . . . . Impact Weapon . | . . . . Slashing Weapon 1 | . . . 1 Piercing Weapon . | . . . . Special Melee Weapon . | . . . . Unidentified Prototypes 1 | . . . 1 Parts Lost 6 | . . . 6 Power . | . . . . Propulsion 4 | . . . 4 Utility 2 | . . . 2 Weapon . | . . . . Highest Loss Streak 4 | . . . 4 To Critical Strikes . | . . . . Average Backups 4 | 2 5 5 4 Power 1 | 1 . . 1 Propulsion 2 | 1 2 2 2 Utility . | . 2 3 . Weapon . | . . . . Tool/Special . | . . . . Unused Backups 7 | . 1 . 6 Power 4 | . 1 . 3 Propulsion 2 | . . . 2 Utility 1 | . . . 1 Weapon . | . . . . Tool/Special . | . . . . Average Slot Usage (%) 62 | . 29 28 67 Engine 4 | . . . 5 Treads 19 | . 28 28 18 Leg 8 | . . . 10 Storage 6 | . . . 7 Protection 14 | . 1 . 16 Slashing Weapon 7 | . . . 8 Peak Build Rating 16 | 3 4 2 16 Average Rating 9 | 1 2 2 10 On Entrance 1 | . 2 2 2 Avg Prop Armor Cover (%) 23 | 41 41 41 13 Naked Turns . | . . . . Heaviest Build 40 | . . . 40 Greatest Support 66 | 20 3 3 66 Greatest Overweight (x) 11 | . . . 11 Average Overweight (x) . | . . . . Largest Inventory Capacity 15 | 5 5 5 15 Average Capacity 11 | 5 5 5 12 Most Carried 8 | 5 5 5 8 Average Carried 4 | 2 4 5 4 Final Capacity 15 | 5 5 5 15 Final Carried 6 | 5 5 5 6 Class Distribution -------------------- 100% | Mutant Dominant Class ---------------- Mutant | -10/Materials Mutant | -10/Mines Mutant | -9/Materials Resources | -11 -10 -10 -9 ----------- Run | Yrd Mat Min Mat Matter Collected 295 | 193 . . 102 Remotely . | . . . . Salvage Created 255 | . . . 255 Parts 13 | . . . 13 Haulers Intercepted 1 | . . . 1 Recyclers Shooed 1 | . 1 . . Parts Field Recycled . | . . . . Retrieved Matter . | . . . . Parts Self-Destructed . | . . . . Prevented . | . . . . Parts Restored . | . . . . Kills | -11 -10 -10 -9 ------- Run | Yrd Mat Min Mat Combat Hostiles Destroyed 6 | . . . 6 Melee 6 | . . . 6 Classes Destroyed 6 | . . . 6 Hauler 1 | . . . 1 Recycler 1 | . . . 1 Swarmer 1 | . . . 1 Grunt 1 | . . . 1 Duelist 1 | . . . 1 Sentry 3 | . . . 3 Best Kill Streak 2 | . . . 2 Combat Bots Only 2 | . . . 2 Max Kills in Single Turn 1 | . . . 1 Gunslinging . | . . . . Exploded . | . . . . Melee 1 | . . . 1 Uniques/NPCs Destroyed . | . . . . Combat | -11 -10 -10 -9 -------- Run | Yrd Mat Min Mat Hostile Shots Fired 167 | . 21 8 138 Missed 41 | . 9 3 29 Hits 126 | . 12 5 109 Melee 1 | . . . 1 Projectile 125 | . 12 5 108 Critical Strikes 4 | . . . 4 Damage Taken 1617 | . 148 44 1425 Core 483 | . 50 29 404 Absorbed by Shields . | . . . . Core Remaining (%) 84 | 100 . 68 . Volleys Fired . | . . . . Largest . | . . . . Hottest . | . . . . Shots Fired . | . . . . Gun . | . . . . Cannon . | . . . . Launcher . | . . . . Special . | . . . . Kinetic . | . . . . Thermal . | . . . . Explosive . | . . . . Electromagnetic . | . . . . Robot Hit Streak . | . . . . Robot Miss Streak . | . . . . Penetration Max . | . . . . Secondary Targets . | . . . . Shots Hit Robots 31 | . . . 31 Core Hits 6 | . . . 6 Critical Kills . | . . . . Critical Parts Destroyed . | . . . . Critical Strikes . | . . . . Melee Attacks 39 | . . . 39 Impact . | . . . . Slashing 39 | . . . 39 Piercing . | . . . . Sneak Attacks 6 | . . . 6 Combat Hostiles . | . . . . Follow-up Attacks . | . . . . Damage Inflicted 864 | . 6 . 858 Guns . | . . . . Cannons . | . . . . Explosions . | . . . . Melee 836 | . . . 836 Ramming 28 | . 6 . 22 Kinetic . | . . . . Thermal . | . . . . Explosive . | . . . . Electromagnetic . | . . . . Impact . | . . . . Slashing 836 | . . . 836 Piercing . | . . . . Highest Corruption . | . . . . Average Corruption . | . . . . Corruption Purged . | . . . . Corruption Blocked . | . . . . Overload Shots . | . . . . Overflow Damage 73 | . . . 73 Projectiles . | . . . . Explosions . | . . . . Melee 73 | . . . 73 Knockbacks . | . . . . Impact . | . . . . Kinetic . | . . . . Secondary . | . . . . Self-Inflicted Damage 3 | . 3 . . Shots . | . . . . Rammed 15 | . 2 . 13 Targets Rammed 42 | . 2 . 40 Kicked 24 | . . . 24 Crushed 3 | . . . 3 Highest Temperature 10 | . . . 10 Average Temperature 6 | . . . 6 Received Heat Transfer 525 | . 72 . 453 Siege Activations . | . . . . Martial Activations . | . . . . Shielding Activations . | . . . . Robots Disrupted . | . . . . Combat Hostiles . | . . . . Robots Corrupted . | . . . . Combat Hostiles . | . . . . Parts Fried . | . . . . Impact Corruptions . | . . . . Robots Melted . | . . . . Combat Hostiles . | . . . . Parts Melted . | . . . . Heat Transferred . | . . . . Parts Sabotaged . | . . . . Parts Stolen . | . . . . Parts Stripped . | . . . . Power Chain Reactions . | . . . . Alert | -11 -10 -10 -9 ------- Run | Yrd Mat Min Mat Maximum Alert Level . | . . . . Low Security (%) 100 | 100 100 100 100 Level 1 . | . . . . Level 2 . | . . . . Level 3 . | . . . . Level 4 . | . . . . Level 5 . | . . . . High Security . | . . . . Max Security . | . . . . Peak Influence 60 | . 30 1 60 Initial 1 | . . 1 . Average 9 | . 11 1 9 Influence Increases 247 | . 45 . 202 Destroy 0b10 Robot/C 120 | . . . 120 Destroy 0b10 Robot/NC 10 | . . . 10 Destroy Leader 52 | . . . 52 Successful Hack 20 | . . . 20 Select Force Hacks 30 | . 30 . . Lose Combat Pursuer 15 | . 15 . . Influence Decreases 243 | . 40 4 199 Entered New Map 5 | . . 4 1 Time Decay 188 | . 40 . 148 Lost Part 50 | . . . 50 Squads Dispatched 2 | . 1 . 1 Investigation 1 | . 1 . . Extermination . | . . . . Reinforcement 1 | . . . 1 Assault . | . . . . Garrison . | . . . . Intercept . | . . . . Searches Triggered . | . . . . Construction Impeded . | . . . . Haulers Reinforced . | . . . . Active Scanning Responses . | . . . . Cargo Convoy Interrupts . | . . . . Stealth | -11 -10 -10 -9 --------- Run | Yrd Mat Min Mat Distress Signals 1 | . . . 1 Communications Jammed . | . . . . Distress Signals . | . . . . Times Spotted 27 | . 9 3 15 Peak Tracking Total 8 | . 8 3 8 Tactical Retreats 1 | . 1 . . Traps | -11 -10 -10 -9 ------- Run | Yrd Mat Min Mat Traps Triggered 4 | . . . 4 Indirectly . | . . . . Trap Hack Attempts . | . . . . Triggered . | . . . . Disarmed . | . . . . Reprogrammed . | . . . . Reused . | . . . . Traps Extracted . | . . . . Installed . | . . . . Triggered . | . . . . Machines | -11 -10 -10 -9 ---------- Run | Yrd Mat Min Mat Machines Disabled . | . . . . Max in Single Turn . | . . . . Machines Repaired . | . . . . Machines Dismantled . | . . . . Machines Sabotaged . | . . . . Overloaded Fab Kills . | . . . . Hacking | -11 -10 -10 -9 --------- Run | Yrd Mat Min Mat Machines Accessed 7 | . 4 . 3 Terminals 6 | . 3 . 3 Fabricators . | . . . . Repair Stations . | . . . . Recycling Units 1 | . 1 . . Scanalyzers . | . . . . Garrison Access . | . . . . Total Hacks 17 | . 10 . 7 Successful 10 | . 4 . 6 Failed 7 | . 6 . 1 Catastrophic 1 | . 1 . . Database Lockouts . | . . . . Manual 17 | . 10 . 7 Terminals 16 | . 9 . 7 Fabricators . | . . . . Repair Stations . | . . . . Recycling Units 1 | . 1 . . Scanalyzers . | . . . . Garrison Access . | . . . . Terminal Hacks 1 | . . . 1 Robot Analysis 1 | . . . 1 Fabricator Hacks . | . . . . Repair Station Hacks . | . . . . Recycling Unit Hacks . | . . . . Scanalyzer . | . . . . Garrison Access Hacks . | . . . . Unauthorized Hacks 8 | . 3 . 5 Terminals 7 | . 2 . 5 Botnet 2 | . . . 2 Skim 5 | . 2 . 3 Fabricators . | . . . . Repair Stations . | . . . . Recycling Units 1 | . 1 . . Tunnel 1 | . 1 . . Scanalyzers . | . . . . Garrison Access . | . . . . Data Cores Recovered . | . . . . Used . | . . . . Hacking Detections 5 | . 3 . 2 Full Trace Events . | . . . . Feedback Events . | . . . . Feedback Blocked . | . . . . Robot Schematics Acquired . | . . . . Robots Built . | . . . . Authchips . | . . . . Time . | . . . . Total Robot Build Rating . | . . . . Part Schematics Acquired . | . . . . Parts Built . | . . . . Authchips . | . . . . Time . | . . . . Total Part Build Rating . | . . . . Part Studies Acquired . | . . . . Parts Repaired . | . . . . Time . | . . . . Parts Recycled . | . . . . Recycled Matter . | . . . . Retrieved Matter . | . . . . Retrieved Components . | . . . . Parts Scanalyzed . | . . . . Part Schematics Acquired . | . . . . Parts Damaged . | . . . . Bothacking | -11 -10 -10 -9 ------------ Run | Yrd Mat Min Mat Used RIF Installer . | . . . . Robots Hacked . | . . . . Non-combat . | . . . . Combat . | . . . . Robot Hacks Applied . | . . . . Relay Couplers Released . | . . . . Fabnet Peak Effective % . | . . . . Robots Rewired . | . . . . Allies Hacked . | . . . . Hacks Repelled . | . . . . Allies | -11 -10 -10 -9 -------- Run | Yrd Mat Min Mat Total Allies . | . . . . Largest Group . | . . . . Highest-Rated Group . | . . . . Highest-Rated Ally . | . . . . Total Orders . | . . . . Ally Attacks . | . . . . Total Damage . | . . . . Kills . | . . . . Allies Corrupted . | . . . . Allies Melted . | . . . . Intel | -11 -10 -10 -9 ------- Run | Yrd Mat Min Mat Active Infowar (turns) . | . . . . Robot Analysis Total 1 | . . . 1 Derelict Logs Recovered 1 | . . 1 . Drone Launches . | . . . . Drone Recoveries . | . . . . Exploration | -11 -10 -10 -9 ------------- Run | Yrd Mat Min Mat Turns Passed 914 | 33 91 8 782 Spaces Moved 617 | 44 170 15 388 Core 316 | 42 170 15 89 Treads 287 | 2 . . 285 Legs 14 | . . . 14 Wheels . | . . . . Hover . | . . . . Flight . | . . . . Fastest Speed 50 | 50 50 50 50 Average Speed 107 | 55 50 50 140 Slowest Speed 600 | 160 50 50 600 Overloaded Moves . | . . . . Propulsion Burnouts . | . . . . Robots Hopped . | . . . . Potential Cave-ins . | . . . . Cave-ins Triggered . | . . . . Exploration Rate (%) 24 | 3 35 11 47 Regions Visited 3 Branch Regions 1 Pre-discovered Areas 2 | . 1 1 . Known Exits Taken . | . . . . Unknown Exits Taken 3 | 1 1 1 . Scrap Searched 1 | . . 1 . Spaces Dug . | . . . . Terrain Destroyed . | . . . . Melee . | . . . . Projectile . | . . . . AOE . | . . . . Terrain Rammed . | . . . . Walls Destroyed . | . . . . Machines Disabled . | . . . . Actions | -11 -10 -10 -9 --------- Run | Yrd Mat Min Mat Total 772 | 51 176 14 531 Wait 28 | . . . 28 Move 614 | 43 169 14 388 Hop . | . . . . Pick Up 17 | 4 1 . 12 Fast Attach 13 | 3 1 . 9 Attach 11 | . . . 11 Detach 2 | 1 1 . . Swap 2 | . . . 2 Drop 4 | . 2 . 2 Fire . | . . . . Melee 39 | . . . 39 Ram 2 | . 2 . . Kick 24 | . . . 24 Crush 16 | . . . 16 Escape Stasis . | . . . . Rewire . | . . . . Trap . | . . . . Miscellaneous . | . . . . Route ------- -11/Scrapyard -10/Materials (discovered 2 exits: *Mat / [*Min]) -10/Mines -9/Materials (discovered 1 exit: [*Mat]) History --------- Turn | Location | Event 14 | -11/Scrapyard | Discovered new exit (range 16) 34 | -11/Scrapyard | Entered Materials 77 | -10/Materials | Discovered new exit (range 8) 88 | -10/Materials | Discovered new exit (range 14) 125 | -10/Materials | Entered Mines 127 | -10/Mines | Discovered new exit (range 11) 130 | -10/Mines | Learned location of Zion (-6) 133 | -10/Mines | Entered Materials 133 | -9/Materials | Evolved 2 slots: Propulsion x1, Utility x1 280 | -9/Materials | Core integrity fell below 50% 282 | -9/Materials | Lost 4 parts (3n1u) 318 | -9/Materials | Build established: Mutant 345 | -9/Materials | Discovered new exit (range 16) 872 | -9/Materials | Core integrity fell below 20% 915 | -9/Materials | Destroyed by G-34 Mercenary with Small Laser Last Messages --------------- 00810_ Acquired Cld. Ion Engine. 00813_ R-06 Scavenger collects Hrd. Light Armor Plating. 00817_ Acquired Mining Claw. 00817_ R-06 Scavenger collects Imp. Aluminum Leg. 00824_ Sneak attack on R-06 Scavenger. 00824_ Destroyed Lgt. Ion Engine. 00832_ Destroyed Sml. Matter Pod. 00843_ M-13 Machinist fits Backup Propulsion I on R-06 Scavenger. 00845_ M-13 Machinist repairs R-06 Scavenger Com. Wheel. 00848_ K-01 Serf cleans the Atomic Centrifuge. 00861_ ALERT: Hostiles spotted, dispatching reinforcements to Terminal M003. 00876_ Y-45 Defender destroyed. 00882_ K-01 Serf collects debris. 00884_ R-06 Scavenger collects Lgt. Treads. 00885_ K-01 Serf collects debris. 00885_ Acquired Lgt. Treads. 00888_ R-06 Scavenger collects Heat Sink. 00898_ Hrd. Light Armor Plating destroyed. 00901_ Critical hit (Burn: +37). Map ----- +----------------------------------------------------+ | ?????????????????????????????????????????????????? | | ?????????????????????????????????????????????????? | | ?????????????????????????????????????????????????? | | ?????????????????????????????????????????????????? | | ?????????????????????????????????????????????????? | | ?????????????????????????????????????????????????? | | ?????????????????????????????????????????????????? | | ?????????????????????????????????????????????????? | | ?????????????????????????????????????????????????? | | ?????????????????????????????????????????????????? | | ?????????????????????????????????????????????????? | | ?????????????????##?????#????????????????????????? | | ????????????????? ??? #????????????????????????? | | ????????????????? ??? #?????????? ?????????????? | | ????# ??????????""" """ #????????? ??????????????? | | ?????#/#####+##?""" """ #???????? ???????????????? | | ?????? #??"" """ #??????? #???????????????? | | ??????? +??? ########+##??????????????? | | ????????? #???? # #??????????????? | | ??????????# #????? # k #??????????????? | | ???????? # #######+### =!! #??????????????? | | ????????" + # =!! g #??????????????? | | ??????????# + =!! """ #??????????????? | | ??????????# # R" #??????????????? | | ??????????# ^^#######+#+# r """ #??????????????? | | ??????????# #???? %#@ g + ????????? | | ??????????# #??""" " ##Y########??????????????? | | ??????????# ## """ T #? #?????????????????????? | | ??????????# ## """ " #? #?????????????????????? | | ??????????# ## #? #?????????????????????? | | ??????????# ## """ #? #?????????????????????? | | ??????????# ## """ !#? #?????????????????????? | | ??????????# #? """ #??#?????????????????????? | | ??????????# #??? ?????????????????????????? | | ??????????# ######## #?????????????????????????? | | ??????????# # ###?????????????????????????? | | ??????????# + #???????????????????????????? | | ??????????# # " #???????????????????????????? | | ??????????# # T #???????????????????????????? | | ??????????# # " #???????????????????????????? | | ??????????# # #???????????????????????????? | | ??????????# #########??????????????????????????? | | ??????????# # ] #??????????????????????????? | | ??????????# + #??????????????????????????? | | ??????????# # #??????????????????????????? | | ??#######?# #####+###??????????????????????????? | | ?? # ##### #########????????????????????? | | #??"" """ # #????????????????????? | | #??"" """ / #????????????????????? | | #??"" """ # #????????????????????? | +----------------------------------------------------+ Best States ------------- Heat Dissipation 28 Energy Generation 14 Energy Capacity 280 Matter Stores 300 Matter Capacity 300 Sight Range 16 Terrain Scan Density 10 Armor Coverage 300 Evasion (%) 50 Recoil Reduction 3 Item Schematics ----------------- None Robot Schematics ------------------ None Fabricated ------------ Nothing Repaired ---------- Nothing Studied --------- None Alien Tech Used ----------------- None Achievements -------------- None Challenges ------------ None Game ------ Seed RainbowLegSlayer Manual? 0 Play Time 00:13:23 Cumulative 259.0 hours Start 2025.12.27 @ 17:33:56 End 2025.12.27 @ 17:42:19 Sessions 1 Manual Loads 0 Difficulty Rogue Special Mode None Game No. 108 Rogue 108 Adventurer 0 Explorer 0 Win Type - Total 26 Types 10/3/6/2/1/0/0/1/1/2 Lore% 79 Gallery% 76 Achievement% 61 Wizard Run 0 Options --------- Layout 0 ASCII 0 Keyboard 1 Movement Vi Keybinds 0 Fullscreen 2 Font 18/SmallcapsGlow Map View 76x50 Zoom Use 0% Tactical HUD 1 Map Filters NONE Filters NONE Steam 1 RUN: 71fe7b66-04ee-40b7-8f02-a5ecd1814b23